[Event "Early-Titled-Tuesday-Blitz-March-19-2024"]
[Site "Chess.com"]
[Date "2024.03.19"]
[Round "10"]
[White "Binary010"]
[Black "dropstoneDP"]
[Result "1/2-1/2"]
[WhiteElo "2869"]
[BlackElo "2991"]
[TimeControl "180+1"]
[EndTime "9:56:43 PDT"]
[Termination "Game drawn - insufficient material"]

1. e4 {[%clk 0:03:00.9]} 1... e5 {[%clk 0:03:00.1]} 2. Nf3 {[%clk 0:02:58.5]}
2... Nf6 {[%clk 0:03:00.4]} 3. Nxe5 {[%clk 0:02:57.5]} 3... d6 {[%clk
0:03:00.4]} 4. Nd3 {[%clk 0:02:53.6]} 4... Nxe4 {[%clk 0:03:00.6]} 5. Nc3 {[%clk
0:02:54]} 5... Nf6 {[%clk 0:02:59.6]} 6. Nf4 {[%clk 0:02:45.8]} 6... d5 {[%clk
0:02:59.8]} 7. d4 {[%clk 0:02:46.1]} 7... c6 {[%clk 0:02:58.9]} 8. Bd3 {[%clk
0:02:45.3]} 8... Bd6 {[%clk 0:02:59.2]} 9. O-O {[%clk 0:02:45.4]} 9... O-O
{[%clk 0:02:58.4]} 10. h3 {[%clk 0:02:43.4]} 10... Nbd7 {[%clk 0:02:53.9]} 11.
Re1 {[%clk 0:02:40.5]} 11... Re8 {[%clk 0:02:53.9]} 12. Be3 {[%clk 0:02:30.6]}
12... Nf8 {[%clk 0:02:53.8]} 13. Qf3 {[%clk 0:02:27.2]} 13... Ng6 {[%clk
0:02:51.5]} 14. Nxg6 {[%clk 0:02:26.4]} 14... hxg6 {[%clk 0:02:52.4]} 15. Bg5
{[%clk 0:02:22.9]} 15... Rxe1+ {[%clk 0:02:51.3]} 16. Rxe1 {[%clk 0:02:22.4]}
16... Be6 {[%clk 0:02:48.8]} 17. Bxg6 {[%clk 0:02:19.5]} 17... fxg6 {[%clk
0:02:35.3]} 18. Rxe6 {[%clk 0:02:18.2]} 18... Qd7 {[%clk 0:02:35.5]} 19. Re2
{[%clk 0:02:01.9]} 19... Nh7 {[%clk 0:02:00.4]} 20. Bd2 {[%clk 0:01:52.5]} 20...
Nf8 {[%clk 0:01:54.9]} 21. Qg4 {[%clk 0:01:49.4]} 21... Qf5 {[%clk 0:01:50.7]}
22. Bg5 {[%clk 0:01:33.3]} 22... Kf7 {[%clk 0:01:41.5]} 23. Nd1 {[%clk
0:01:16.2]} 23... Ne6 {[%clk 0:01:38.3]} 24. Bc1 {[%clk 0:01:15.9]} 24... Qxg4
{[%clk 0:01:37.3]} 25. hxg4 {[%clk 0:01:16]} 25... Nxd4 {[%clk 0:01:37.9]} 26.
Rd2 {[%clk 0:01:12.8]} 26... Ne6 {[%clk 0:01:35.2]} 27. g3 {[%clk 0:01:10.9]}
27... Bc5 {[%clk 0:01:29.9]} 28. Kg2 {[%clk 0:01:07.6]} 28... b5 {[%clk
0:01:21.9]} 29. Rd3 {[%clk 0:01:07.5]} 29... a5 {[%clk 0:01:18.5]} 30. f4 {[%clk
0:01:03.3]} 30... a4 {[%clk 0:01:15.8]} 31. f5 {[%clk 0:01:00.9]} 31... Nf8
{[%clk 0:01:06.8]} 32. Rc3 {[%clk 0:00:57.9]} 32... Nd7 {[%clk 0:01:06.8]} 33.
Nf2 {[%clk 0:00:45.1]} 33... Bxf2 {[%clk 0:00:56.7]} 34. Kxf2 {[%clk 0:00:45.1]}
34... c5 {[%clk 0:00:57.1]} 35. Rd3 {[%clk 0:00:38]} 35... d4 {[%clk 0:00:56.2]}
36. Bf4 {[%clk 0:00:38.2]} 36... Rh8 {[%clk 0:00:46.7]} 37. Kg2 {[%clk 0:00:36]}
37... Nf6 {[%clk 0:00:43.3]} 38. c3 {[%clk 0:00:29.5]} 38... Nxg4 {[%clk
0:00:39.3]} 39. cxd4 {[%clk 0:00:27]} 39... Rh2+ {[%clk 0:00:37.2]} 40. Kg1
{[%clk 0:00:16.3]} 40... c4 {[%clk 0:00:37.3]} 41. fxg6+ {[%clk 0:00:15.4]}
41... Kxg6 {[%clk 0:00:38.2]} 42. Rd1 {[%clk 0:00:13.2]} 42... Rh1+ {[%clk
0:00:23.5]} 43. Kxh1 {[%clk 0:00:12.1]} 43... Nf2+ {[%clk 0:00:24.1]} 44. Kg2
{[%clk 0:00:12.2]} 44... Nxd1 {[%clk 0:00:24.8]} 45. Bc1 {[%clk 0:00:11.2]}
45... c3 {[%clk 0:00:22.5]} 46. bxc3 {[%clk 0:00:11.3]} 46... Nxc3 {[%clk
0:00:23]} 47. a3 {[%clk 0:00:11.9]} 47... Kf5 {[%clk 0:00:14.7]} 48. Kf3 {[%clk
0:00:11.9]} 48... Ke6 {[%clk 0:00:13.4]} 49. Bb2 {[%clk 0:00:10.2]} 49... Nd5
{[%clk 0:00:10.9]} 50. g4 {[%clk 0:00:07]} 50... g6 {[%clk 0:00:10.8]} 51. Bc1
{[%clk 0:00:05.6]} 51... Nb6 {[%clk 0:00:10.6]} 52. Ke4 {[%clk 0:00:05.8]} 52...
Nd5 {[%clk 0:00:09.4]} 53. g5 {[%clk 0:00:05.7]} 53... Nc3+ {[%clk 0:00:07.9]}
54. Kd3 {[%clk 0:00:05.3]} 54... Nd5 {[%clk 0:00:06.7]} 55. Ke4 {[%clk
0:00:05.6]} 55... Kd6 {[%clk 0:00:06.2]} 56. Bb2 {[%clk 0:00:03.4]} 56... Nb6
{[%clk 0:00:03.6]} 57. Bc1 {[%clk 0:00:03.6]} 57... Ke6 {[%clk 0:00:03.7]} 58.
Bb2 {[%clk 0:00:03.7]} 58... Nc4 {[%clk 0:00:02.5]} 59. Bc1 {[%clk 0:00:04.1]}
59... Nd6+ {[%clk 0:00:02.4]} 60. Kd3 {[%clk 0:00:03.5]} 60... Kd5 {[%clk
0:00:03]} 61. Kc3 {[%clk 0:00:03.5]} 61... Nf5 {[%clk 0:00:01.7]} 62. Kb4 {[%clk
0:00:02.7]} 62... Nxd4 {[%clk 0:00:02.2]} 63. Bb2 {[%clk 0:00:03.4]} 63... Nf3
{[%clk 0:00:01.6]} 64. Kxb5 {[%clk 0:00:02.2]} 64... Nxg5 {[%clk 0:00:02.2]} 65.
Kxa4 {[%clk 0:00:02.7]} 65... Kc4 {[%clk 0:00:02]} 66. Be5 {[%clk 0:00:01.9]}
66... Ne4 {[%clk 0:00:02.9]} 67. Ka5 {[%clk 0:00:01.3]} 67... Kd5 {[%clk
0:00:03.2]} 68. Bf4 {[%clk 0:00:01.3]} 68... g5 {[%clk 0:00:04]} 69. Bxg5 {[%clk
0:00:01.7]} 69... Nxg5 {[%clk 0:00:04.6]} 70. a4 {[%clk 0:00:02.3]} 70... Kc6
{[%clk 0:00:04.9]} 71. Kb4 {[%clk 0:00:02.1]} 71... Ne6 {[%clk 0:00:05.8]} 72.
Kc3 {[%clk 0:00:03]} 72... Nc7 {[%clk 0:00:06.1]} 73. Kd3 {[%clk 0:00:03.9]}
73... Kb6 {[%clk 0:00:06.2]} 74. Ke4 {[%clk 0:00:04.8]} 74... Ka5 {[%clk
0:00:06.8]} 75. Ke5 {[%clk 0:00:05.7]} 75... Kxa4 {[%clk 0:00:07.7]} 1/2-1/2

[Event "Early-Titled-Tuesday-Blitz-March-19-2024"]
[Site "Chess.com"]
[Date "2024.03.19"]
[Round "10"]
[White "Alexei_Gubajdullin"]
[Black "malakismayil"]
[Result "1-0"]
[WhiteElo "2661"]
[BlackElo "2532"]
[TimeControl "180+1"]
[EndTime "9:56:44 PDT"]
[Termination "Alexei_Gubajdullin won on time"]

1. Nf3 {[%clk 0:02:39]} 1... Nf6 {[%clk 0:02:58]} 2. g3 {[%clk 0:02:38.6]} 2...
d5 {[%clk 0:02:57.2]} 3. Bg2 {[%clk 0:02:38.6]} 3... e6 {[%clk 0:02:58.1]} 4.
O-O {[%clk 0:02:38.5]} 4... Be7 {[%clk 0:02:59]} 5. d3 {[%clk 0:02:37.5]} 5...
O-O {[%clk 0:02:59.9]} 6. Nbd2 {[%clk 0:02:37.1]} 6... c5 {[%clk 0:03:00.6]} 7.
e4 {[%clk 0:02:34.8]} 7... b6 {[%clk 0:03:01]} 8. Qe2 {[%clk 0:02:33.3]} 8...
Bb7 {[%clk 0:03:01.5]} 9. e5 {[%clk 0:02:32.7]} 9... Nfd7 {[%clk 0:03:01]} 10.
Re1 {[%clk 0:02:30.4]} 10... Nc6 {[%clk 0:03:01.3]} 11. Nf1 {[%clk 0:02:29.6]}
11... Qc7 {[%clk 0:03:00.8]} 12. Bf4 {[%clk 0:02:29.1]} 12... Rac8 {[%clk
0:02:59.8]} 13. h4 {[%clk 0:02:27.7]} 13... Rfe8 {[%clk 0:02:48.7]} 14. h5
{[%clk 0:02:27.3]} 14... h6 {[%clk 0:02:48.8]} 15. N1h2 {[%clk 0:02:25.6]} 15...
d4 {[%clk 0:02:15.4]} 16. Ng4 {[%clk 0:02:21.4]} 16... Bf8 {[%clk 0:02:14.5]}
17. Qd2 {[%clk 0:02:19.1]} 17... Ne7 {[%clk 0:02:10.4]} 18. Nf6+ {[%clk
0:02:11.4]} 18... Kh8 {[%clk 0:02:01]} 19. Nxe8 {[%clk 0:02:07.1]} 19... Rxe8
{[%clk 0:02:01.9]} 20. Nh4 {[%clk 0:01:53.8]} 20... Bxg2 {[%clk 0:01:58.8]} 21.
Kxg2 {[%clk 0:01:52.5]} 21... Nd5 {[%clk 0:01:54.3]} 22. Qe2 {[%clk 0:01:48]}
22... b5 {[%clk 0:01:49.5]} 23. Kh2 {[%clk 0:01:46.7]} 23... Qd8 {[%clk
0:01:42.1]} 24. Ng2 {[%clk 0:01:45.7]} 24... Qc7 {[%clk 0:01:36.7]} 25. a4
{[%clk 0:01:44.2]} 25... a6 {[%clk 0:01:34.3]} 26. axb5 {[%clk 0:01:43.9]} 26...
axb5 {[%clk 0:01:35.2]} 27. Bd2 {[%clk 0:01:41.8]} 27... c4 {[%clk 0:01:03.1]}
28. Nf4 {[%clk 0:01:41]} 28... c3 {[%clk 0:00:56.5]} 29. bxc3 {[%clk 0:01:37.6]}
29... dxc3 {[%clk 0:00:57.4]} 30. Nxd5 {[%clk 0:01:34]} 30... exd5 {[%clk
0:00:54.9]} 31. Bf4 {[%clk 0:01:34.9]} 31... Qc6 {[%clk 0:00:49.4]} 32. Qg4
{[%clk 0:01:34.5]} 32... Nc5 {[%clk 0:00:47]} 33. Ra7 {[%clk 0:01:33.7]} 33...
Kg8 {[%clk 0:00:36.9]} 34. Qf5 {[%clk 0:01:32.6]} 34... Qe6 {[%clk 0:00:34.9]}
35. Qxe6 {[%clk 0:01:31.4]} 35... Nxe6 {[%clk 0:00:35.8]} 36. Rb1 {[%clk
0:01:30.3]} 36... Nd4 {[%clk 0:00:33.3]} 37. Rc1 {[%clk 0:01:13]} 37... Rd8
{[%clk 0:00:21.6]} 38. Kg2 {[%clk 0:01:06.7]} 38... b4 {[%clk 0:00:18.5]} 39.
Be3 {[%clk 0:01:05.9]} 39... Nc6 {[%clk 0:00:17.9]} 40. Rb7 {[%clk 0:00:59.3]}
40... Nxe5 {[%clk 0:00:17]} 41. Ra1 {[%clk 0:00:59.2]} 41... d4 {[%clk
0:00:06.8]} 42. Bf4 {[%clk 0:00:58.6]} 42... Nd7 {[%clk 0:00:07.5]} 43. Raa7
{[%clk 0:00:54.3]} 43... Nc5 {[%clk 0:00:07.7]} 44. Rxf7 {[%clk 0:00:54.1]}
44... b3 {[%clk 0:00:07.6]} 45. cxb3 {[%clk 0:00:53.3]} 45... Nxd3 {[%clk
0:00:07.5]} 46. Rfc7 {[%clk 0:00:42]} 46... Nb4 {[%clk 0:00:04.9]} 47. Be5
{[%clk 0:00:38.8]} 47... Nd5 {[%clk 0:00:03.4]} 48. Rc4 {[%clk 0:00:24.2]} 48...
d3 {[%clk 0:00:02.8]} 49. Rd4 {[%clk 0:00:22.7]} 49... d2 {[%clk 0:00:02.2]} 50.
Ra1 {[%clk 0:00:18.9]} 50... Bc5 {[%clk 0:00:01.3]} 51. Rc4 {[%clk 0:00:09]}
51... Bb4 {[%clk 0:00:02]} 52. Rd1 {[%clk 0:00:07.9]} 52... Rd7 {[%clk 0:00:02]}
53. Kf1 {[%clk 0:00:07.6]} 53... Kf7 {[%clk 0:00:02.7]} 54. f4 {[%clk
0:00:07.9]} 54... Ke6 {[%clk 0:00:03.2]} 55. Ke2 {[%clk 0:00:08.2]} 55... Rb7
{[%clk 0:00:02.9]} 56. Kd3 {[%clk 0:00:08.2]} 56... Ba5 {[%clk 0:00:03.4]} 57.
Rf1 {[%clk 0:00:08.3]} 57... Rxb3 {[%clk 0:00:03.1]} 58. Ke4 {[%clk 0:00:07.4]}
58... Rb4 {[%clk 0:00:02.3]} 59. f5+ {[%clk 0:00:07]} 59... Kd7 {[%clk
0:00:02.1]} 60. Rxb4 {[%clk 0:00:03]} 60... Bxb4 {[%clk 0:00:01.5]} 61. Kd3
{[%clk 0:00:02.3]} 61... Ba5 {[%clk 0:00:01.2]} 62. Rh1 {[%clk 0:00:01.6]} 1-0

[Event "Early-Titled-Tuesday-Blitz-March-19-2024"]
[Site "Chess.com"]
[Date "2024.03.19"]
[Round "10"]
[White "Rodalquilar"]
[Black "Ural_bogatyr"]
[Result "1/2-1/2"]
[WhiteElo "2787"]
[BlackElo "2629"]
[TimeControl "180+1"]
[EndTime "9:56:47 PDT"]
[Termination "Game drawn - insufficient material"]

1. d4 {[%clk 0:03:00.9]} 1... Nf6 {[%clk 0:02:55.2]} 2. Nf3 {[%clk 0:03:00.5]}
2... d5 {[%clk 0:02:52.9]} 3. Bf4 {[%clk 0:03:00.8]} 3... c5 {[%clk 0:02:52.5]}
4. e3 {[%clk 0:03:01]} 4... Nc6 {[%clk 0:02:51]} 5. Nbd2 {[%clk 0:03:01.5]} 5...
Nh5 {[%clk 0:02:49.1]} 6. Be5 {[%clk 0:02:51.8]} 6... e6 {[%clk 0:02:40.2]} 7.
c3 {[%clk 0:02:38]} 7... f6 {[%clk 0:02:39.2]} 8. Bg3 {[%clk 0:02:38]} 8... Nxg3
{[%clk 0:02:36]} 9. hxg3 {[%clk 0:02:38.2]} 9... a6 {[%clk 0:02:32.8]} 10. Bd3
{[%clk 0:02:36.5]} 10... f5 {[%clk 0:02:31]} 11. Nh4 {[%clk 0:02:13.7]} 11...
Qf6 {[%clk 0:02:23.8]} 12. Qh5+ {[%clk 0:02:11.8]} 12... Qf7 {[%clk 0:02:04.7]}
13. Ng6 {[%clk 0:02:10.6]} 13... hxg6 {[%clk 0:02:03.9]} 14. Qxh8 {[%clk
0:02:10.7]} 14... e5 {[%clk 0:02:04.1]} 15. dxe5 {[%clk 0:02:07.9]} 15... Nxe5
{[%clk 0:02:03.7]} 16. Be2 {[%clk 0:02:06.6]} 16... Be6 {[%clk 0:01:59.5]} 17.
Qh4 {[%clk 0:02:03.1]} 17... Be7 {[%clk 0:01:58]} 18. Qa4+ {[%clk 0:02:03.2]}
18... Bd7 {[%clk 0:01:55.1]} 19. Rh8+ {[%clk 0:02:02.9]} 19... Bf8 {[%clk
0:01:55.2]} 20. Qa5 {[%clk 0:01:54.9]} 20... Bc6 {[%clk 0:01:46.4]} 21. Qxc5
{[%clk 0:01:53.5]} 21... O-O-O {[%clk 0:01:45.3]} 22. Qa7 {[%clk 0:01:49.4]}
22... Kc7 {[%clk 0:01:42.2]} 23. Bxa6 {[%clk 0:01:33.5]} 23... Bc5 {[%clk
0:01:38.2]} 24. Qxc5 {[%clk 0:01:30.8]} 24... Rxh8 {[%clk 0:01:38.8]} 25. Bf1
{[%clk 0:01:28.9]} 25... Ng4 {[%clk 0:01:28]} 26. f3 {[%clk 0:01:22.1]} 26...
Ne5 {[%clk 0:01:16.3]} 27. O-O-O {[%clk 0:01:15.9]} 27... g5 {[%clk 0:01:16]}
28. Qd4 {[%clk 0:01:09.6]} 28... Nd7 {[%clk 0:01:14.7]} 29. Nb3 {[%clk
0:01:05.6]} 29... Ra8 {[%clk 0:01:13]} 30. Kb1 {[%clk 0:01:05.7]} 30... Qe7
{[%clk 0:01:07.5]} 31. Bd3 {[%clk 0:01:02.7]} 31... g6 {[%clk 0:01:07]} 32. g4
{[%clk 0:01:01.3]} 32... fxg4 {[%clk 0:01:04.9]} 33. fxg4 {[%clk 0:01:01.8]}
33... Qe6 {[%clk 0:01:04.9]} 34. Rf1 {[%clk 0:00:48.1]} 34... b6 {[%clk
0:00:59.8]} 35. Rf3 {[%clk 0:00:41.3]} 35... Ne5 {[%clk 0:00:59]} 36. Rh3 {[%clk
0:00:36.7]} 36... Qe7 {[%clk 0:00:47.3]} 37. Rh6 {[%clk 0:00:27.5]} 37... Ra4
{[%clk 0:00:41.3]} 38. Rh7 {[%clk 0:00:16.4]} 38... Qxh7 {[%clk 0:00:36.5]} 39.
Qxe5+ {[%clk 0:00:17]} 39... Kb7 {[%clk 0:00:35.9]} 40. a3 {[%clk 0:00:17.2]}
40... Ra8 {[%clk 0:00:34]} 41. Qxg5 {[%clk 0:00:15.8]} 41... Re8 {[%clk
0:00:30.8]} 42. Bxg6 {[%clk 0:00:12.6]} 42... Qe7 {[%clk 0:00:31.2]} 43. Qf4
{[%clk 0:00:08.4]} 43... Qxe3 {[%clk 0:00:27.6]} 44. Qxe3 {[%clk 0:00:04.7]}
44... Rxe3 {[%clk 0:00:28.5]} 45. Nd4 {[%clk 0:00:05.6]} 45... Bd7 {[%clk
0:00:27.3]} 46. Bf5 {[%clk 0:00:05.7]} 46... Kc7 {[%clk 0:00:26.1]} 47. Bxd7
{[%clk 0:00:04.4]} 47... Kxd7 {[%clk 0:00:25.5]} 48. Kc2 {[%clk 0:00:04.2]}
48... Rg3 {[%clk 0:00:25.5]} 49. Kb3 {[%clk 0:00:02.7]} 49... Rxg2 {[%clk
0:00:23.3]} 50. a4 {[%clk 0:00:03.3]} 50... Rxg4 {[%clk 0:00:21.6]} 51. Kb4
{[%clk 0:00:03.8]} 51... Kc7 {[%clk 0:00:20.4]} 52. Kb5 {[%clk 0:00:03.2]} 52...
Kb7 {[%clk 0:00:18.4]} 53. b4 {[%clk 0:00:02.1]} 53... Rg3 {[%clk 0:00:17.6]}
54. Ne2 {[%clk 0:00:02]} 54... Re3 {[%clk 0:00:17.7]} 55. Nf4 {[%clk 0:00:02.6]}
55... Re5 {[%clk 0:00:16.7]} 56. Nd3 {[%clk 0:00:02.6]} 56... Rh5 {[%clk
0:00:16.6]} 57. a5 {[%clk 0:00:01.1]} 57... bxa5 {[%clk 0:00:15.5]} 58. Nc5+
{[%clk 0:00:01.3]} 58... Ka7 {[%clk 0:00:14.7]} 59. Kxa5 {[%clk 0:00:02.2]}
59... Rh3 {[%clk 0:00:14.1]} 60. Na4 {[%clk 0:00:02.6]} 60... Rd3 {[%clk
0:00:13.6]} 61. Kb5 {[%clk 0:00:02.9]} 61... Rd1 {[%clk 0:00:12.8]} 62. Kc5
{[%clk 0:00:03.1]} 62... Ka6 {[%clk 0:00:12.5]} 63. Nb6 {[%clk 0:00:03]} 63...
d4 {[%clk 0:00:11.4]} 64. b5+ {[%clk 0:00:03.3]} 64... Ka5 {[%clk 0:00:11.3]}
65. Nc4+ {[%clk 0:00:03.4]} 65... Ka4 {[%clk 0:00:11.6]} 66. cxd4 {[%clk
0:00:04.1]} 66... Rc1 {[%clk 0:00:11.2]} 67. b6 {[%clk 0:00:04.6]} 67... Kb3
{[%clk 0:00:11.7]} 68. b7 {[%clk 0:00:02.7]} 68... Rxc4+ {[%clk 0:00:12.3]} 69.
Kb6 {[%clk 0:00:01.8]} 69... Rxd4 {[%clk 0:00:11.9]} 70. b8=Q {[%clk 0:00:02.1]}
70... Rb4+ {[%clk 0:00:12.8]} 71. Kc7 {[%clk 0:00:02.7]} 71... Rxb8 {[%clk
0:00:13.6]} 72. Kxb8 {[%clk 0:00:03.3]} 1/2-1/2

[Event "Early-Titled-Tuesday-Blitz-March-19-2024"]
[Site "Chess.com"]
[Date "2024.03.19"]
[Round "10"]
[White "Sina_Movahed"]
[Black "FairChess_on_YouTube"]
[Result "1/2-1/2"]
[WhiteElo "3096"]
[BlackElo "3140"]
[TimeControl "180+1"]
[EndTime "9:56:51 PDT"]
[Termination "Game drawn by repetition"]

1. Nf3 {[%clk 0:03:00.9]} 1... Nf6 {[%clk 0:02:59.6]} 2. c4 {[%clk 0:03:01.5]}
2... c6 {[%clk 0:02:57.9]} 3. g3 {[%clk 0:02:59.3]} 3... g6 {[%clk 0:02:55.4]}
4. b3 {[%clk 0:02:58.8]} 4... Bg7 {[%clk 0:02:55.7]} 5. Bb2 {[%clk 0:02:59.4]}
5... O-O {[%clk 0:02:56]} 6. Bg2 {[%clk 0:03:00]} 6... d5 {[%clk 0:02:55]} 7.
O-O {[%clk 0:03:00.6]} 7... Bg4 {[%clk 0:02:54.3]} 8. d4 {[%clk 0:02:59.6]} 8...
Bxf3 {[%clk 0:02:53.8]} 9. Bxf3 {[%clk 0:03:00.5]} 9... e6 {[%clk 0:02:54.2]}
10. Nd2 {[%clk 0:02:57]} 10... Nbd7 {[%clk 0:02:53.6]} 11. e3 {[%clk 0:02:57.3]}
11... a6 {[%clk 0:02:51.8]} 12. b4 {[%clk 0:02:52.3]} 12... b5 {[%clk
0:02:42.6]} 13. cxd5 {[%clk 0:02:50.2]} 13... cxd5 {[%clk 0:02:42.7]} 14. Nb3
{[%clk 0:02:50.1]} 14... Nb6 {[%clk 0:02:40.5]} 15. Nc5 {[%clk 0:02:49.4]} 15...
Nfd7 {[%clk 0:02:36.6]} 16. Rb1 {[%clk 0:02:40.1]} 16... Nc4 {[%clk 0:02:34.6]}
17. Bc3 {[%clk 0:02:37]} 17... Ndb6 {[%clk 0:02:30.4]} 18. a4 {[%clk 0:02:31.8]}
18... Nxa4 {[%clk 0:02:26.3]} 19. Nxa4 {[%clk 0:02:32.7]} 19... bxa4 {[%clk
0:02:26.4]} 20. Qxa4 {[%clk 0:02:33.6]} 20... Qb6 {[%clk 0:02:22.5]} 21. Rfc1
{[%clk 0:02:32.6]} 21... Rfc8 {[%clk 0:02:21.9]} 22. Be1 {[%clk 0:02:30]} 22...
Qb5 {[%clk 0:02:18.9]} 23. Ra1 {[%clk 0:02:24]} 23... Bf8 {[%clk 0:02:04.5]} 24.
Be2 {[%clk 0:02:19.5]} 24... h5 {[%clk 0:01:59.8]} 25. h4 {[%clk 0:02:14.1]}
25... Be7 {[%clk 0:01:59.4]} 26. Ra2 {[%clk 0:02:11.8]} 26... Rab8 {[%clk
0:01:51.7]} 27. Rb1 {[%clk 0:02:02.9]} 27... Rb6 {[%clk 0:01:43.7]} 28. Qd1
{[%clk 0:01:59.5]} 28... Rcb8 {[%clk 0:01:40.6]} 29. Bd3 {[%clk 0:01:50.1]}
29... Qc6 {[%clk 0:01:35.8]} 30. Rba1 {[%clk 0:01:27.9]} 30... Bxb4 {[%clk
0:01:24.9]} 31. Bxb4 {[%clk 0:01:27.3]} 31... Rxb4 {[%clk 0:01:25.8]} 32. Rxa6
{[%clk 0:01:27.7]} 32... R4b6 {[%clk 0:01:24.6]} 33. Rxb6 {[%clk 0:01:22.5]}
33... Rxb6 {[%clk 0:01:19.6]} 34. Qf3 {[%clk 0:01:20.4]} 34... Kg7 {[%clk
0:00:57.5]} 35. Ra7 {[%clk 0:01:11.9]} 35... Nd6 {[%clk 0:00:56.9]} 36. Qf4
{[%clk 0:01:08.7]} 36... Rb3 {[%clk 0:00:20.5]} 37. Qe5+ {[%clk 0:00:59.7]}
37... Kh7 {[%clk 0:00:20.6]} 38. Qxh5+ {[%clk 0:00:58.9]} 38... Kg7 {[%clk
0:00:20.2]} 39. Bxg6 {[%clk 0:00:56.8]} 39... Rb7 {[%clk 0:00:15.5]} 40. Rxb7
{[%clk 0:00:52.8]} 40... Qxb7 {[%clk 0:00:16.4]} 41. Qh7+ {[%clk 0:00:52]} 41...
Kf8 {[%clk 0:00:14.5]} 42. Bd3 {[%clk 0:00:51]} 42... Qb3 {[%clk 0:00:13.9]} 43.
Kg2 {[%clk 0:00:50.9]} 43... Qd1 {[%clk 0:00:13.2]} 44. h5 {[%clk 0:00:48.6]}
44... f5 {[%clk 0:00:12.8]} 45. h6 {[%clk 0:00:43.8]} 45... Qxd3 {[%clk
0:00:07.9]} 46. Qg7+ {[%clk 0:00:25.2]} 46... Ke8 {[%clk 0:00:08.4]} 47. h7
{[%clk 0:00:19.5]} 47... Nf7 {[%clk 0:00:08.8]} 48. h8=Q+ {[%clk 0:00:13]} 48...
Nxh8 {[%clk 0:00:08.9]} 49. Qxh8+ {[%clk 0:00:13.9]} 49... Kf7 {[%clk 0:00:09]}
50. Qe5 {[%clk 0:00:14.5]} 50... Qc2 {[%clk 0:00:08.2]} 51. Qf4 {[%clk
0:00:12.9]} 51... Qc6 {[%clk 0:00:05.5]} 52. g4 {[%clk 0:00:13.1]} 52... Qc2
{[%clk 0:00:05.3]} 53. gxf5 {[%clk 0:00:13]} 53... exf5 {[%clk 0:00:05.5]} 54.
Qe5 {[%clk 0:00:13.6]} 54... Qe4+ {[%clk 0:00:03.5]} 55. Qxe4 {[%clk 0:00:13.6]}
55... fxe4 {[%clk 0:00:03.9]} 56. Kg3 {[%clk 0:00:13.6]} 56... Kg7 {[%clk
0:00:04.2]} 57. f3 {[%clk 0:00:07.5]} 57... exf3 {[%clk 0:00:04]} 58. Kxf3
{[%clk 0:00:07.5]} 58... Kf7 {[%clk 0:00:04.6]} 59. Ke2 {[%clk 0:00:04.1]} 59...
Ke8 {[%clk 0:00:04.3]} 60. Kd3 {[%clk 0:00:03]} 60... Kd7 {[%clk 0:00:04.7]} 61.
Kc3 {[%clk 0:00:03.9]} 61... Kc7 {[%clk 0:00:04.9]} 62. Kb4 {[%clk 0:00:04.8]}
62... Kb6 {[%clk 0:00:05.2]} 63. Ka4 {[%clk 0:00:05.5]} 63... Ka6 {[%clk
0:00:05.7]} 64. Kb4 {[%clk 0:00:06]} 64... Kb6 {[%clk 0:00:06]} 65. Kc3 {[%clk
0:00:06.4]} 65... Kc7 {[%clk 0:00:06.2]} 66. Kd3 {[%clk 0:00:06.9]} 66... Kd7
{[%clk 0:00:06.6]} 67. Ke2 {[%clk 0:00:07.6]} 67... Ke6 {[%clk 0:00:06]} 68. Kf2
{[%clk 0:00:08.3]} 68... Kf6 {[%clk 0:00:06.3]} 69. Kg3 {[%clk 0:00:08.9]} 69...
Kg5 {[%clk 0:00:06.4]} 70. Kf3 {[%clk 0:00:09.3]} 70... Kf5 {[%clk 0:00:06.8]}
71. Ke2 {[%clk 0:00:09.7]} 71... Ke6 {[%clk 0:00:07.1]} 72. Kd3 {[%clk
0:00:09.8]} 72... Kd7 {[%clk 0:00:07.5]} 1/2-1/2